bitfinex-derivatives/quotes_BTCF0:USTF0_20251111
["timestamp","ask_amount","ask_price","bid_price","bid_amount"]
[1762848489496,0.00014314,104920.0,104910.0,1.63197012]
[1762848489702,0.1398714,104950.0,104940.0,0.05504]
[1762848489903,0.4798714,104950.0,104940.0,0.05723803]
[1762848490199,0.34,104950.0,104940.0,0.70200399]
[1762848490995,0.34,104950.0,104940.0,0.79731924]
[1762848491195,0.34,104950.0,104940.0,0.79831924]
[1762848491196,0.343,104950.0,104940.0,0.79831924]
[1762848491506,0.345,104950.0,104940.0,0.79831924]
[1762848492300,0.343,104950.0,104940.0,0.90499119]
[1762848492496,0.343,104950.0,104940.0,0.90699119]
[1762848493098,0.34,104950.0,104940.0,0.90599119]
[1762848493300,0.34,104950.0,104940.0,0.90799119]
[1762848493500,0.34,104950.0,104940.0,0.69464729]
[1762848493694,0.38455,104950.0,104940.0,0.72131934]
[1762848494108,0.36151,104950.0,104940.0,0.72131934]
[1762848494415,0.34,104950.0,104940.0,0.72131934]
[1762848494708,0.34,104950.0,104940.0,0.72031934]
[1762848494913,0.34,104950.0,104940.0,0.95855934]
[1762848495210,0.34,104950.0,104940.0,1.03613535]
[1762848495415,0.34,104950.0,104940.0,1.1428073]
[1762848496304,0.34,104950.0,104940.0,0.9294634]
[1762848496509,0.34,104950.0,104940.0,1.1428073]
[1762848497020,0.34,104950.0,104940.0,1.1408073]
[1762848497318,0.34,104950.0,104940.0,0.9045673]
[1762848497518,0.34,104950.0,104940.0,1.1428073]
[1762848497720,0.34,104950.0,104940.0,0.9055673]
[1762848497920,0.34,104950.0,104940.0,1.03713535]
[1762848498117,0.34,104950.0,104940.0,0.79889535]
[1762848498515,0.34,104950.0,104940.0,1.03713535]
[1762848498820,0.34,104950.0,104940.0,1.1438073]
[1762848499420,0.34,104950.0,104940.0,0.9055673]
[1762848499816,0.34,104950.0,104940.0,0.9035673]
[1762848500021,0.34,104950.0,104940.0,1.1438073]
[1762848501023,0.36151,104950.0,104940.0,0.79889535]
[1762848501220,0.34,104950.0,104940.0,0.79889535]
[1762848501414,0.34,104950.0,104940.0,0.9055673]
[1762848503523,0.34,104950.0,104940.0,0.9035673]
[1762848503725,0.34,104950.0,104940.0,0.9055673]
[1762848503920,0.477845,104950.0,104940.0,0.79889535]
[1762848504632,0.477845,104950.0,104940.0,0.6922234]
[1762848504815,0.489695,104950.0,104940.0,0.13881404]
[1762848505018,0.489695,104950.0,104940.0,0.36413814]
[1762848505219,0.38253,104950.0,104940.0,0.66981009]
[1762848505824,0.38253,104950.0,104940.0,0.66881009]
[1762848506526,0.38253,104950.0,104940.0,0.66781009]
[1762848506714,0.38353,104950.0,104940.0,0.66781009]
[1762848506916,0.38353,104950.0,104940.0,0.66681009]
[1762848507318,0.4788449,104950.0,104940.0,0.66681009]
[1762848507526,0.4788449,104950.0,104940.0,0.33680999]
[1762848508126,0.4788449,104950.0,104940.0,0.63680999]
[1762848508427,0.38353,104950.0,104940.0,0.63680999]
[1762848509822,0.341,104950.0,104940.0,0.83876994]
[1762848510024,0.341,104950.0,104940.0,0.98152297]
[1762848510324,0.341,104950.0,104940.0,1.06661588]
[1762848511630,0.341,104950.0,104940.0,0.85327198]
[1762848511830,0.341,104950.0,104940.0,1.06661588]
[1762848512932,0.341,104950.0,104940.0,0.98152297]
[1762848513135,0.478845,104950.0,104940.0,0.87485102]
[1762848513334,0.38353,104950.0,104940.0,0.76817907]
[1762848513525,0.4788449,104950.0,104940.0,0.87485102]
[1762848513726,0.4788449,104950.0,104940.0,0.47956302]
[1762848514025,0.4788449,104950.0,104940.0,0.76956302]
[1762848514225,0.4788449,104950.0,104940.0,0.49956302]
[1762848514533,0.4788449,104950.0,104940.0,0.37289107]
[1762848514725,0.4788449,104950.0,104940.0,0.27756707]
[1762848515129,0.4788449,104950.0,104940.0,0.38423902]
[1762848515326,0.4788449,104950.0,104940.0,0.47956302]
[1762848515532,0.4788449,104950.0,104940.0,0.38423902]
[1762848516633,0.4788449,104950.0,104940.0,0.27756707]
[1762848516830,0.4788449,104950.0,104940.0,0.51289107]
[1762848517132,0.4788449,104950.0,104940.0,0.37289107]
[1762848517332,0.4788449,104950.0,104940.0,0.27756707]
[1762848517639,0.4788449,104950.0,104940.0,0.41843707]
[1762848518037,0.4788449,104950.0,104940.0,0.27843707]
[1762848518336,0.4788449,104950.0,104940.0,0.38510902]
[1762848518537,0.38353,104950.0,104940.0,0.73043312]
[1762848521032,0.36241,104950.0,104940.0,0.73043312]
[1762848521238,0.38353,104950.0,104940.0,0.73043312]
[1762848522235,0.311,104950.0,104940.0,0.93239307]
[1762848523338,0.311,104950.0,104940.0,1.05231492]
[1762848524531,0.02241,104950.0,104940.0,0.94564297]
[1762848524732,0.29241,104950.0,104940.0,0.94564297]
[1762848525028,0.29241,104950.0,104940.0,1.05231492]
[1762848526039,0.001,104950.0,104940.0,1.05231492]
[1762848526234,0.331,104950.0,104940.0,1.05231492]
[1762848526436,0.331,104950.0,104940.0,0.93239307]
[1762848527544,0.331,104950.0,104940.0,1.17063307]
[1762848527739,0.001,104950.0,104940.0,1.05228961]
[1762848527943,0.001,104950.0,104940.0,1.29052961]
[1762848528136,0.07826314,104960.0,104940.0,1.29052961]
[1762848528137,0.07826314,104960.0,104950.0,0.151875]
[1762848528444,0.13826314,104960.0,104950.0,1.16570759]
[1762848528647,0.13826314,104960.0,104950.0,1.2840219]
[1762848528941,0.13826314,104960.0,104950.0,1.55076258]
[1762848529142,0.10395549,104960.0,104950.0,1.55076258]
[1762848530041,0.10595549,104960.0,104950.0,1.55076258]
[1762848530433,0.51510139,104960.0,104950.0,1.24731448]
[1762848530635,0.41779549,104960.0,104950.0,1.0768618]
[1762848530834,0.39536549,104960.0,104950.0,1.17314072]
[1762848531144,0.37395549,104960.0,104950.0,1.17314072]
[1762848531443,0.41739549,104960.0,104950.0,0.9468618]
[1762848531646,0.51270139,104960.0,104950.0,0.9478618]
[1762848531842,0.51270139,104960.0,104950.0,0.6725469]
[1762848532038,0.51270139,104960.0,104950.0,0.81234884]
[1762848532443,0.51270139,104960.0,104950.0,0.90766384]
[1762848532847,0.51270139,104960.0,104950.0,0.68118995]
[1762848533150,0.51270139,104960.0,104950.0,0.79999189]
[1762848533646,0.51270139,104960.0,104950.0,0.93318444]
[1762848533947,0.51370139,104960.0,104950.0,0.93218444]
[1762848535346,0.51370139,104960.0,104950.0,0.67918995]
[1762848535854,0.41839549,104960.0,104950.0,1.21796252]
[1762848536248,0.41839549,104960.0,104950.0,1.1323825]
[1762848536444,0.4697459,104960.0,104950.0,1.1323825]
[1762848536752,0.4697459,104960.0,104950.0,0.8123825]
[1762848538251,0.4697459,104960.0,104950.0,0.7923825]
[1762848538755,0.4697459,104960.0,104950.0,0.65918995]
[1762848538953,0.4697459,104960.0,104950.0,0.51643303]
[1762848539354,0.4697459,104960.0,104950.0,0.60202256]
[1762848539850,0.4697459,104960.0,104950.0,0.50670756]
[1762848540250,0.4697459,104960.0,104950.0,0.42111803]
[1762848541255,0.4697459,104960.0,104950.0,0.51643293]
[1762848541450,0.4697459,104960.0,104950.0,0.05875803]
[1762848541654,0.4697459,104960.0,104950.0,0.17855997]
[1762848542252,0.4697459,104960.0,104950.0,0.27387487]
[1762848542453,0.37444,104960.0,104950.0,0.67285711]
[1762848542650,0.4697459,104960.0,104950.0,0.58726548]
[1762848542852,0.331,104960.0,104950.0,0.58726548]
[1762848543152,0.4363059,104960.0,104950.0,0.82579854]
[1762848543358,0.36258,104960.0,104950.0,0.97725122]
[1762848543657,0.36258,104960.0,104950.0,1.12285122]
[1762848543856,0.4578859,104960.0,104950.0,1.12285122]
[1762848544359,0.4792959,104960.0,104950.0,0.7475723]
[1762848544657,0.4857159,104960.0,104950.0,0.60070975]
[1762848544854,0.4857159,104960.0,104950.0,0.50539485]
[1762848545154,0.4857159,104960.0,104950.0,0.46743065]
[1762848545551,0.4857159,104960.0,104950.0,0.31050651]
[1762848545757,0.8480759,104960.0,104950.0,0.26761651]
[1762848545951,0.61890845,104960.0,104950.0,0.23119353]
[1762848546254,0.4857159,104960.0,104950.0,0.23119353]
[1762848546455,0.4857159,104960.0,104950.0,0.1456]
[1762848546758,0.4857159,104960.0,104950.0,0.30017303]
[1762848547058,0.4857159,104960.0,104950.0,0.29045156]
[1762848547857,0.4857159,104960.0,104950.0,0.27678156]
[1762848548249,0.4857159,104960.0,104950.0,0.19118803]
[1762848549260,0.4857159,104960.0,104950.0,0.23119353]
[1762848549463,0.61890845,104960.0,104950.0,0.23119353]
[1762848549760,0.138305,104950.0,104940.0,0.23797763]
[1762848549958,0.448305,104950.0,104940.0,0.24017566]
[1762848550549,0.448305,104950.0,104940.0,0.14485156]
[1762848551060,0.448305,104950.0,104940.0,0.14585156]
[1762848551460,0.460155,104950.0,104940.0,0.14585156]
[1762848551964,0.460155,104950.0,104940.0,0.14685156]
[1762848552461,0.95578755,104950.0,104940.0,0.08741767]
[1762848552663,0.95578755,104950.0,104940.0,0.001]
[1762848552957,0.95778755,104950.0,104940.0,0.001]
[1762848553163,0.1447341,104940.0,104930.0,0.16335162]
[1762848553458,0.4547341,104940.0,104930.0,0.16554965]
[1762848553851,0.4547341,104940.0,104930.0,0.17921965]
[1762848554660,0.4557341,104940.0,104930.0,0.17921965]
[1762848555155,0.4557341,104940.0,104930.0,0.16554965]
[1762848555361,0.58892665,104940.0,104930.0,0.11996162]
[1762848555553,0.58892665,104940.0,104930.0,0.00014314]
[1762848555749,0.4577341,104940.0,104930.0,0.00234117]
[1762848557660,0.4577341,104940.0,104930.0,0.00014314]
[1762848558060,0.59092665,104940.0,104930.0,0.00014314]
[1762848558962,0.56434899,104940.0,104930.0,0.00014314]
[1762848559265,0.67096388,104940.0,104930.0,0.00014314]
[1762848560761,0.67096388,104940.0,104930.0,0.04339314]
[1762848560962,0.56434899,104940.0,104930.0,0.15220606]
[1762848561469,0.56434899,104940.0,104930.0,0.23766184]
[1762848561769,0.92682899,104940.0,104930.0,0.42561606]
[1762848561967,0.4513141,104940.0,104930.0,0.71301983]
[1762848562170,0.4513141,104940.0,104930.0,0.64076764]
[1762848562567,0.4513141,104940.0,104930.0,1.00324764]
[1762848562870,0.4513141,104940.0,104930.0,1.02985957]
[1762848563065,0.4503141,104940.0,104930.0,0.67452647]
[1762848563765,0.4503141,104940.0,104930.0,1.05985957]
[1762848563971,0.4503141,104940.0,104930.0,1.06085957]
[1762848564272,0.4493141,104940.0,104930.0,1.06085957]
[1762848564465,0.4493141,104940.0,104930.0,1.05985957]
[1762848564665,0.4493141,104940.0,104930.0,1.06085957]
[1762848565066,0.4493141,104940.0,104930.0,0.67552647]
[1762848565569,0.4493141,104940.0,104930.0,0.54229965]
[1762848565966,0.4493141,104940.0,104930.0,0.54129965]
[1762848566172,0.4493141,104940.0,104930.0,0.64681437]
[1762848566366,0.4493141,104940.0,104930.0,0.55470799]
[1762848566567,0.4493141,104940.0,104930.0,0.67452647]
[1762848566865,0.4493141,104940.0,104930.0,0.42148117]
[1762848567575,0.4611641,104940.0,104930.0,0.40807117]
[1762848568367,0.4493141,104940.0,104930.0,0.42148117]
[1762848569167,0.4493141,104940.0,104930.0,0.65681437]
[1762848569471,0.4493141,104940.0,104930.0,0.84470799]
[1762848569668,0.4493141,104940.0,104930.0,0.94004119]
[1762848570475,0.4483141,104940.0,104930.0,0.94004119]
[1762848570675,0.4483141,104940.0,104930.0,0.57856119]
[1762848571577,0.4483141,104940.0,104930.0,0.72165301]
[1762848572176,0.4353241,104940.0,104930.0,0.72165301]
[1762848572476,0.4353241,104940.0,104930.0,0.72265301]
[1762848573279,0.4814441,104940.0,104930.0,0.72265301]
[1762848573579,0.4584241,104940.0,104930.0,0.72265301]
[1762848574075,0.4353241,104940.0,104930.0,0.72265301]
[1762848574278,0.34,104940.0,104930.0,0.72265301]
[1762848574480,0.00014314,104950.0,104940.0,0.1535441]
[1762848574675,0.1734168,104970.0,104960.0,0.1535259]
[1762848574878,0.5034168,104970.0,104960.0,0.99147075]
[1762848575181,0.40812,104970.0,104960.0,1.25481457]
[1762848575476,0.07812,104970.0,104960.0,1.35008442]
[1762848575669,0.00663093,104970.0,104960.0,1.53494745]
[1762848575874,0.00663093,104970.0,104960.0,1.77310745]
[1762848576069,0.00863093,104970.0,104960.0,1.63988063]
[1762848576275,0.00863093,104970.0,104960.0,1.53494745]
[1762848576474,0.00863093,104970.0,104960.0,1.77310745]
[1762848576676,0.00663093,104970.0,104960.0,1.77310745]
[1762848576872,0.00663093,104970.0,104960.0,1.77410745]
[1762848577073,0.00663093,104970.0,104960.0,1.53594745]
[1762848577474,0.00663093,104970.0,104960.0,1.77510745]
[1762848578182,0.00663093,104970.0,104960.0,1.53694745]
[1762848578380,0.00663093,104970.0,104960.0,1.77510745]
[1762848578977,0.00663093,104970.0,104960.0,1.60365477]
[1762848579182,9.3e-07,104970.0,104960.0,1.36549477]
[1762848579377,9.3e-07,104970.0,104960.0,1.60365477]
[1762848579584,9.3e-07,104970.0,104960.0,1.36549477]
[1762848579784,9.3e-07,104970.0,104960.0,1.48484458]
[1762848579984,9.3e-07,104970.0,104960.0,1.72300458]
[1762848580581,9.3e-07,104970.0,104960.0,1.48484458]
[1762848580779,9.3e-07,104970.0,104960.0,1.56200168]
[1762848580974,0.154119,104990.0,104980.0,0.04481]
[1762848581184,0.494119,104990.0,104980.0,0.40948803]
[1762848581486,0.494119,104990.0,104980.0,0.68578606]
[1762848581687,0.494119,104990.0,104980.0,0.53045924]
[1762848582088,0.494119,104990.0,104980.0,0.36467803]
[1762848582480,0.495119,104990.0,104980.0,0.36467803]
[1762848582679,0.495119,104990.0,104980.0,0.00219803]
[1762848582680,0.497119,104990.0,104980.0,0.00219803]
[1762848583080,0.1541278,104980.0,104970.0,0.40739314]
[1762848583284,0.4641278,104980.0,104970.0,0.40959117]
[1762848583477,0.4641278,104980.0,104970.0,0.62488797]
[1762848583682,0.4641278,104980.0,104970.0,0.94811479]
[1762848584291,0.4651278,104980.0,104970.0,0.94811479]
[1762848585492,0.36984,104980.0,104970.0,0.94811479]
[1762848585691,0.35712,104980.0,104970.0,1.18565822]
[1762848585896,0.001,104980.0,104970.0,1.18565822]
[1762848588285,0.37984,104980.0,104970.0,1.18565822]
[1762848588495,0.341,104980.0,104970.0,1.18565822]
[1762848589094,0.001,104980.0,104970.0,1.18565822]
[1762848589295,0.001,104980.0,104970.0,1.42381822]
[1762848590291,0.00376,104990.0,104980.0,0.1527578]
[1762848590494,0.05376,104990.0,104980.0,0.56818265]
[1762848590696,0.05376,104990.0,104980.0,0.71057137]
[1762848590890,0.05376,104990.0,104980.0,0.80583214]
[1762848591893,0.05576,104990.0,104980.0,0.80583214]
[1762848592484,0.05676,104990.0,104980.0,0.80583214]
[1762848592792,0.07997,104990.0,104980.0,0.80583214]
[1762848594389,0.05676,104990.0,104980.0,0.80583214]
[1762848594987,0.05676,104990.0,104980.0,1.10586452]
[1762848595188,0.05676,104990.0,104980.0,0.86774452]
[1762848595492,0.05676,104990.0,104980.0,1.10586452]
[1762848596192,0.05676,104990.0,104980.0,0.86774452]
[1762848596400,0.05676,104990.0,104980.0,1.10586452]
[1762848596797,0.00676,104990.0,104980.0,1.10586452]
[1762848596994,0.01185,105010.0,105000.0,0.1379696]
[1762848597198,0.38456,105010.0,105000.0,0.98754683]
[1762848597402,0.40606,105010.0,105000.0,1.12972209]
[1762848598098,0.41006,105010.0,105000.0,1.13072209]
[1762848598494,0.41306,105010.0,105000.0,1.13072209]
[1762848598702,0.5083205,105010.0,105000.0,1.13072209]
[1762848599206,0.41306,105010.0,105000.0,1.13072209]
[1762848599707,0.41306,105010.0,105000.0,1.14372671]
[1762848599900,0.41306,105010.0,105000.0,0.70858751]
[1762848599901,0.5083205,105010.0,105000.0,0.70858751]
[1762848600098,0.5083205,105010.0,105000.0,0.93858751]
[1762848601310,0.41306,105010.0,105000.0,0.93858751]
[1762848601610,0.41306,105010.0,105000.0,1.13372671]
[1762848601825,0.5083205,105010.0,105000.0,0.20837791]
[1762848602108,0.5083205,105010.0,105000.0,0.61931145]
[1762848602307,0.41306,105010.0,105000.0,0.85692176]
[1762848602609,0.39156,105010.0,105000.0,0.86356176]
[1762848602806,0.19156,105010.0,105000.0,0.86356176]
[1762848603108,0.19446,105010.0,105000.0,0.85692176]
[1762848603303,0.41446,105010.0,105000.0,0.94228504]
[1762848603709,0.41446,105010.0,105000.0,0.94128504]
[1762848603904,0.19346,105010.0,105000.0,0.94128504]
[1762848604211,0.19346,105010.0,105000.0,0.97527157]
[1762848604607,0.19246,105010.0,105000.0,0.85592176]
[1762848604808,0.134,105010.0,105000.0,0.86256176]
[1762848605011,0.004,105010.0,105000.0,0.94799313]
[1762848605308,0.002,105010.0,105000.0,0.86256176]
[1762848605514,0.12088023,105030.0,105020.0,0.1379515]
[1762848605711,0.44413023,105030.0,105020.0,0.69780873]
[1762848605913,0.44413023,105030.0,105020.0,0.94780873]
[1762848606617,0.33271,105030.0,105020.0,1.27862496]
[1762848607021,0.314,105030.0,105020.0,1.27862496]
[1762848607817,0.313,105030.0,105020.0,1.27862496]
[1762848608019,0.314,105030.0,105020.0,1.27862496]
[1762848608227,0.4534524,105030.0,105020.0,1.35862496]
[1762848608520,0.36946,105030.0,105020.0,1.35862496]
[1762848609316,0.36946,105030.0,105020.0,1.35055496]
[1762848609513,0.4647024,105030.0,105020.0,1.35055496]
[1762848609818,0.4647024,105030.0,105020.0,0.67803496]
[1762848610014,0.4647024,105030.0,105020.0,1.21512226]
[1762848610814,0.36946,105030.0,105020.0,1.21512226]
[1762848611015,0.35621,105030.0,105020.0,1.22319226]
[1762848611217,0.312,105030.0,105020.0,1.22319226]
[1762848611525,0.33471,105030.0,105020.0,1.22319226]
[1762848611725,0.35621,105030.0,105020.0,1.22319226]
[1762848612023,0.4647024,105030.0,105020.0,1.21512226]
[1762848612225,0.43041462,105030.0,105020.0,1.30055496]
[1762848612425,0.43041462,105030.0,105020.0,1.21512226]
[1762848612921,0.33517222,105030.0,105020.0,1.22319226]
[1762848613322,0.33517222,105030.0,105020.0,1.30862496]
[1762848613523,0.43041462,105030.0,105020.0,1.22319226]
[1762848614123,0.43041462,105030.0,105020.0,1.21512226]
[1762848614422,0.43041462,105030.0,105020.0,0.93512226]
[1762848614822,0.43041462,105030.0,105020.0,1.05512226]
[1762848615221,0.33517222,105030.0,105020.0,0.93512226]
[1762848615428,0.33517222,105030.0,105020.0,1.27055496]
[1762848616427,0.30042222,105030.0,105020.0,1.27862496]
[1762848616926,0.27771222,105030.0,105020.0,1.27862496]
[1762848617121,0.002,105030.0,105020.0,1.31254207]
[1762848617323,0.1526843,105050.0,105040.0,0.1399733]
[1762848617522,0.4398278,105050.0,105040.0,1.05308053]
[1762848618032,0.3446035,105050.0,105040.0,1.05308053]
[1762848618229,0.33302875,105050.0,105040.0,1.05308053]
[1762848618528,0.42825305,105050.0,105040.0,1.05308053]
[1762848618727,0.33502875,105050.0,105040.0,1.05308053]
[1762848619226,0.43025305,105050.0,105040.0,1.05308053]
[1762848619928,0.33502875,105050.0,105040.0,1.05308053]
[1762848620129,0.33702875,105050.0,105040.0,1.05308053]
[1762848620427,0.33702875,105050.0,105040.0,1.19642148]
[1762848621230,0.33715875,105050.0,105040.0,1.19642148]
[1762848621428,0.33715875,105050.0,105040.0,1.28173534]
[1762848621629,0.43238305,105050.0,105040.0,1.37693263]
[1762848621835,0.43238305,105050.0,105040.0,1.29161877]
[1762848622033,0.33715875,105050.0,105040.0,1.19634148]
[1762848622328,0.43238305,105050.0,105040.0,1.02634148]
[1762848622530,0.33715875,105050.0,105040.0,1.02634148]
[1762848622726,0.43238305,105050.0,105040.0,0.85634148]
[1762848622929,0.43238305,105050.0,105040.0,0.96634148]
[1762848623127,0.43238305,105050.0,105040.0,1.09878539]
[1762848623336,0.44563305,105050.0,105040.0,0.73887949]
[1762848623933,0.43238305,105050.0,105040.0,0.99887949]
[1762848624434,0.43238305,105050.0,105040.0,1.19401869]
[1762848624829,0.43238305,105050.0,105040.0,0.99887949]
[1762848625232,0.43238305,105050.0,105040.0,0.84887949]
[1762848625626,0.43185735,105050.0,105040.0,0.84887949]
[1762848625826,0.43185735,105050.0,105040.0,0.73887949]
[1762848626027,0.43185735,105050.0,105040.0,0.83878539]
[1762848626227,0.43185735,105050.0,105040.0,0.73887949]
[1762848626428,0.43185735,105050.0,105040.0,1.04887949]
[1762848626737,0.43185735,105050.0,105040.0,0.85887949]
[1762848626940,0.43185735,105050.0,105040.0,1.04887949]
[1762848627537,0.33663305,105050.0,105040.0,1.04887949]
[1762848628036,0.31430305,105050.0,105040.0,1.33921598]
[1762848628337,0.38668735,105050.0,105040.0,1.33921598]
[1762848628738,0.40952735,105050.0,105040.0,1.33921598]
[1762848628940,0.31430305,105050.0,105040.0,1.33921598]
[1762848629837,0.40952735,105050.0,105040.0,1.33921598]
[1762848630040,0.40952735,105050.0,105040.0,1.24401869]
[1762848630041,0.43185735,105050.0,105040.0,1.24401869]
[1762848630235,0.43185735,105050.0,105040.0,1.32933255]
[1762848630437,0.43185735,105050.0,105040.0,1.24401869]
[1762848630639,0.31430305,105050.0,105040.0,1.24401869]
[1762848631038,0.33663305,105050.0,105040.0,1.24401869]
[1762848631333,0.43185735,105050.0,105040.0,1.24401869]
[1762848631839,0.43185735,105050.0,105040.0,1.26401869]
[1762848632337,0.004,105050.0,105040.0,1.34933255]
[1762848632535,0.004,105050.0,105040.0,1.44452984]
[1762848633532,0.00055107,105050.0,105040.0,1.35921598]
[1762848633949,0.00055107,105050.0,105040.0,1.47856579]
[1762848634840,0.1403825,105070.0,105060.0,0.1526452]
[1762848635031,0.1403825,105070.0,105060.0,0.88253471]
[1762848635032,0.5003825,105070.0,105060.0,0.88253471]
[1762848635228,0.5003825,105070.0,105060.0,0.50731951]
[1762848635429,0.5003825,105070.0,105060.0,0.60253471]
[1762848636138,0.5033825,105070.0,105060.0,0.60253471]
[1762848636329,0.5033825,105070.0,105060.0,0.86253471]
[1762848636743,0.5053825,105070.0,105060.0,0.50731951]
[1762848637743,0.5053825,105070.0,105060.0,0.60253471]
[1762848638937,0.62371076,105070.0,105060.0,0.08764951]
[1762848639132,0.5173725,105070.0,105060.0,0.47125951]
[1762848639336,0.5173725,105070.0,105060.0,0.50304323]
[1762848639537,0.48309127,105070.0,105060.0,0.49327951]
[1762848639737,0.48309127,105070.0,105060.0,0.50719951]
[1762848640144,0.48309127,105070.0,105060.0,0.49327951]
[1762848640938,0.48309127,105070.0,105060.0,0.50719951]
[1762848641240,0.48309127,105070.0,105060.0,0.59961777]
[1762848641450,0.48309127,105070.0,105060.0,0.47125951]
[1762848641644,0.58942953,105070.0,105060.0,0.47125951]
[1762848641845,0.48309127,105070.0,105060.0,0.38580803]
[1762848642546,0.48309127,105070.0,105060.0,0.40782803]
[1762848643044,0.48309127,105070.0,105060.0,0.04570803]
[1762848647456,0.48309127,105070.0,105060.0,0.02368803]
[1762848648056,0.48309127,105070.0,105060.0,0.04570803]
[1762848648754,0.48309127,105070.0,105060.0,0.02368803]
[1762848648969,0.48309127,105070.0,105060.0,0.04570803]
[1762848649255,0.58942953,105070.0,105060.0,0.00219803]
[1762848649558,0.95130953,105070.0,105060.0,0.00219803]
[1762848650357,0.1398752,105060.0,105050.0,0.12969462]
[1762848650562,0.4818652,105060.0,105050.0,0.11033265]
[1762848650759,0.4818652,105060.0,105050.0,0.25232337]
[1762848651060,0.4818652,105060.0,105050.0,0.27388337]
[1762848651461,0.58820346,105060.0,105050.0,0.3077817]
[1762848651662,0.59020346,105060.0,105050.0,0.3077817]
[1762848652757,0.59020346,105060.0,105050.0,0.12169098]
[1762848652963,0.59020346,105060.0,105050.0,0.20732585]
[1762848653266,0.59020346,105060.0,105050.0,0.08797604]
[1762848653458,0.59020346,105060.0,105050.0,0.13207604]
[1762848653661,0.59120346,105060.0,105050.0,0.04644117]
[1762848653866,0.59120346,105060.0,105050.0,0.16579098]
[1762848656963,0.59124036,105060.0,105050.0,0.27216614]
[1762848658260,0.59124036,105060.0,105050.0,0.16579098]
[1762848658465,0.59124036,105060.0,105050.0,0.27216614]
[1762848659465,0.59124036,105060.0,105050.0,0.36739044]
[1762848659668,0.59124036,105060.0,105050.0,0.47739044]
[1762848660268,0.59124036,105060.0,105050.0,0.38216614]
[1762848660465,0.59124036,105060.0,105050.0,0.27216614]
[1762848661165,0.4728752,105060.0,105050.0,0.68050084]
[1762848661368,0.333,105060.0,105050.0,1.37669828]
[1762848661567,0.333,105060.0,105050.0,1.26694496]
[1762848662269,0.35436,105060.0,105050.0,1.26694496]
[1762848662471,0.35436,105060.0,105050.0,1.38675887]
[1762848662661,0.333,105060.0,105050.0,1.62471887]
[1762848662862,0.04259,105080.0,105070.0,0.1534365]
[1762848663063,0.38259,105080.0,105070.0,1.1900592]
[1762848663361,0.4777875,105080.0,105070.0,1.21380724]
[1762848663564,0.4777875,105080.0,105070.0,1.29005382]
[1762848663763,0.4777875,105080.0,105070.0,0.84367866]
[1762848664173,0.4817875,105080.0,105070.0,1.34525992]
[1762848664362,0.4817875,105080.0,105070.0,1.06743208]
[1762848665266,0.4817875,105080.0,105070.0,1.17380724]
[1762848665473,0.4827875,105080.0,105070.0,1.17380724]
[1762848665672,0.4827875,105080.0,105070.0,1.06743208]
[1762848665875,0.4827875,105080.0,105070.0,0.67222598]
[1762848666172,0.4797875,105080.0,105070.0,0.67222598]
[1762848666670,0.4797875,105080.0,105070.0,1.03743208]
[1762848666972,0.38459,105080.0,105070.0,1.14380724]
[1762848667276,0.342,105080.0,105070.0,1.23897735]
[1762848668366,0.342,105080.0,105070.0,1.35850154]
[1762848668569,0.342,105080.0,105070.0,1.59642154]
[1762848668870,0.307,105080.0,105070.0,1.34535251]
[1762848669272,0.272,105080.0,105070.0,1.41043003]
[1762848669473,0.272,105080.0,105070.0,1.64835003]
[1762848669766,0.1085144,105100.0,105090.0,0.095188]
[1762848669767,0.01333,105100.0,105090.0,0.095188]
[1762848669974,0.14333,105100.0,105090.0,1.00197635]
[1762848670173,0.14333,105100.0,105090.0,1.31679455]
[1762848670372,0.16469,105100.0,105090.0,1.41196466]
[1762848670869,0.14633,105100.0,105090.0,1.24051198]
[1762848671476,0.133,105100.0,105090.0,1.58476714]
[1762848671675,0.05584,105120.0,105090.0,2.15589414]
[1762848671884,0.29584,105120.0,105110.0,0.30792012]
[1762848672183,0.29584,105120.0,105110.0,1.21002593]
[1762848672578,0.29584,105120.0,105110.0,1.30517793]
[1762848672791,0.29584,105120.0,105110.0,1.22006085]
[1762848673076,0.27461,105120.0,105110.0,1.30510619]
[1762848673281,0.27561,105120.0,105110.0,1.30510619]
[1762848673783,0.29684,105120.0,105110.0,1.10482312]
[1762848674081,0.29584,105120.0,105110.0,1.21119828]
[1762848674682,0.29584,105120.0,105110.0,1.2325281]
[1762848675380,0.29584,105120.0,105110.0,1.2335281]
[1762848678582,0.27461,105120.0,105110.0,1.2335281]
[1762848678784,0.29584,105120.0,105110.0,1.2335281]
[1762848679295,0.25325,105120.0,105110.0,1.2335281]
[1762848679489,0.27461,105120.0,105110.0,1.2335281]
[1762848679679,0.25325,105120.0,105110.0,1.2335281]
[1762848680785,0.05851,105140.0,105130.0,0.0951517]
[1762848681089,0.05851,105140.0,105130.0,1.11500668]
[1762848681287,0.17851,105140.0,105130.0,1.21014058]
[1762848681490,0.37851,105140.0,105130.0,1.21014058]
[1762848681877,0.4756527,105140.0,105130.0,0.91014058]
[1762848682085,0.06051,105140.0,105130.0,1.20014058]
[1762848682383,0.06151,105140.0,105130.0,1.16014058]
[1762848682579,0.39951,105140.0,105130.0,1.16014058]
[1762848682786,0.39951,105140.0,105130.0,1.16114058]
[1762848683083,0.4946527,105140.0,105130.0,0.94839026]
[1762848683287,0.4946527,105140.0,105130.0,1.16114058]
[1762848683590,0.4936527,105140.0,105130.0,1.16214058]
[1762848684084,0.4936527,105140.0,105130.0,0.93214058]
[1762848684291,0.4936527,105140.0,105130.0,0.71063152]
[1762848684490,0.4936527,105140.0,105130.0,0.84063152]
[1762848684886,0.39851,105140.0,105130.0,0.84063152]
[1762848685082,0.39851,105140.0,105130.0,0.99063152]
[1762848685387,0.4936527,105140.0,105130.0,0.34891152]
[1762848685592,0.4936527,105140.0,105130.0,0.71067152]
[1762848685888,0.39851,105140.0,105130.0,1.00067152]
[1762848686091,0.39851,105140.0,105130.0,1.10704668]
[1762848686285,0.39851,105140.0,105130.0,1.00067152]
[1762848686792,0.39851,105140.0,105130.0,1.20216248]
[1762848687792,0.14851,105140.0,105130.0,1.20216248]
[1762848687990,0.10333,105140.0,105130.0,1.20216248]
[1762848688290,0.14851,105140.0,105130.0,1.20216248]
[1762848689788,0.10333,105140.0,105130.0,1.20216248]
[1762848690391,0.03679,105160.0,105150.0,0.0951336]
[1762848690594,0.05679,105160.0,105150.0,0.61008195]
[1762848690890,0.03356,105160.0,105150.0,1.29458284]
[1762848691089,0.01356,105160.0,105150.0,1.29458284]
[1762848691490,0.05874,105160.0,105150.0,1.2095375]
[1762848691698,0.05874,105160.0,105150.0,1.2105375]
[1762848692292,0.03679,105160.0,105150.0,1.2095375]
[1762848692487,0.03679,105160.0,105150.0,1.2115375]